Cogmind - Beta 11 X10 @@@ ROGUE MODE // 2022.02.07 @ 11:03:15 Player: gammafunk Result: Self-destructed Performance ------------- Evolutions (1) 500 Regions Visited (5) 1000 Robots Destroyed (73) 365 Value Destroyed (1855) 1855 Prototype IDs (11) 220 Alien Tech Used (0) 0 Bonus (-27) -27 TOTAL SCORE: 3913 Bonus ------- Friendly Fire -27 Cogmind --------- Core Integrity 279/400 Matter 290/300 Energy 280/280 System Corruption 0% Temperature Cool (0) Movement Treading (240) Ox1 Location -7/Zion Parts ------- > --- POWER (1) -------- Heavy Ion Engine > --- PROPULSION (3) --- Light Treads Improved Treads Improved Treads > --- UTILITY (2) ------ Huge Storage Unit Medium Armor Plating > --- WEAPON (3) ------- Gauss Rifle Plasma Cutter > --- INVENTORY (25) --- Heavy Ion Engine Light Treads Light Treads Light Treads Light Treads Light Treads Light Treads Large Storage Unit High-capacity Matter Pod (200) Improved Sensor Array Improved Signal Interpreter Hardened Light Armor Plating Hacking Suite Heavy Assault Rifle Heavy Assault Rifle Minigun Minigun EMP Blaster Rocket Launcher CR-A16's Pointy Stick Self-destruct Interrupter (50) Self-destruct Interrupter (50) Peak State ------------ > --- POWER ------------ Heavy Ion Engine > --- PROPULSION ------- Light Treads Improved Treads Improved Treads > --- UTILITY ---------- Large Storage Unit Hardened Light Armor Plating > --- WEAPON ----------- Minigun Minigun Minigun > --- INVENTORY -------- Heavy Ion Engine Light Treads Light Treads Light Treads Huge Storage Unit Improved Sensor Array Improved Signal Interpreter Hardened Light Armor Plating Hacking Suite Heavy Assault Rifle Heavy Assault Rifle Minigun EMP Blaster Rocket Launcher Plasma Cutter [Rating: 23] Favorites ----------- Power Heavy Ion Engine Engine Heavy Ion Engine Propulsion Light Treads Treads Light Treads Leg Aluminum Leg Utility Large Storage Unit Device Hardlight Generator Storage Large Storage Unit Protection Hardened Light Armor Plating Weapon Minigun Energy Gun Small Laser Ballistic Gun Minigun Launcher Mini Grenade Launcher Special Weapon Plasma Cutter Piercing Weapon CR-A16's Pointy Stick Build | -11 -10 -10 -9 -9 -7 ------- Run | Scr Mat Min Mat Min Zio Slots Evolved 2 | . . . 2 . . Power . | . . . . . . Propulsion 1 | . . . 1 . . Utility . | . . . . . . Weapon 1 | . . . 1 . . Parts Attached 81 | 7 17 11 35 7 4 Power 8 | 1 2 3 2 . . Engine 8 | 1 2 3 2 . . Core . | . . . . . . Reactor . | . . . . . . Propulsion 31 | 2 5 3 18 3 . Treads 23 | 2 3 1 14 3 . Leg 8 | . 2 2 4 . . Wheel . | . . . . . . Hover . | . . . . . . Flight . | . . . . . . Utility 15 | 2 5 4 2 2 . Device 7 | 1 2 4 . . . Storage 4 | 1 2 . . 1 . Processor . | . . . . . . Hackware . | . . . . . . Protection 4 | . 1 . 2 1 . Artifact . | . . . . . . Weapon 27 | 2 5 1 13 2 4 Energy Gun 5 | 1 2 . 2 . . Energy Cannon . | . . . . . . Ballistic Gun 17 | 1 3 1 9 2 1 Ballistic Cannon . | . . . . . . Launcher 2 | . . . 2 . . Special Weapon 2 | . . . . . 2 Impact Weapon . | . . . . . . Slashing Weapon . | . . . . . . Piercing Weapon 1 | . . . . . 1 Special Melee Weapon . | . . . . . . Unidentified Prototypes 1 | . 1 . . . . Parts Lost 8 | . 1 3 2 2 . Power 1 | . . 1 . . . Propulsion 1 | . 1 . . . . Utility 2 | . . 2 . . . Weapon 4 | . . . 2 2 . Highest Loss Streak 2 | . 1 2 2 1 . To Critical Strikes . | . . . . . . Average Slot Usage (%) 96 | . 99 98 99 100 69 Engine 11 | . 14 12 11 11 11 Treads 26 | . 27 10 28 33 33 Leg 4 | . . 17 4 . . Device 3 | . 7 13 1 . . Storage 12 | . 14 14 11 11 11 Protection 7 | . 6 . 9 11 11 Energy Gun 3 | . 14 . 2 . . Ballistic Gun 24 | . 13 28 29 33 1 Naked Turns . | . . . . . . Heaviest Build 104 | 12 30 37 42 104 104 Greatest Support 66 | 40 40 40 63 66 66 Greatest Overweight (x) 2 | 1 2 1 1 1 1 Average Overweight (x) . | . . . . . 1 Largest Inventory Capacity 25 | 8 15 15 15 25 25 Average Capacity 15 | 7 13 15 15 16 25 Most Carried 23 | 5 15 15 15 17 23 Average Carried 14 | 3 12 14 14 14 22 Final Capacity 25 | 8 15 15 15 25 25 Final Carried 22 | 4 15 15 15 17 22 Class Distribution -------------------- 55% | Tank 44% | Mutant Dominant Class ---------------- Mutant | -10/Materials Mutant | -10/Mines Tank | -9/Materials Tank | -9/Mines Mutant | -7/Zion Resources | -11 -10 -10 -9 -9 -7 ----------- Run | Scr Mat Min Mat Min Zio Matter Collected 2253 | 246 255 202 1018 493 39 Remotely . | . . . . . . Salvage Created 2657 | 22 689 236 1357 296 57 Parts 159 | 3 30 13 90 19 4 Haulers Intercepted 8 | . 2 . 6 . . Recyclers Shooed 6 | . 3 1 . 2 . Parts Field Recycled . | . . . . . . Retrieved Matter . | . . . . . . Parts Self-Destructed 3 | . . . . . 3 Prevented . | . . . . . . Kills | -11 -10 -10 -9 -9 -7 ------- Run | Scr Mat Min Mat Min Zio Combat Hostiles Destroyed 63 | . 14 6 26 17 . Guns 62 | . 13 6 26 17 . Classes Destroyed 12 | 1 6 1 2 2 . Worker 1 | . . . 1 . . Builder 2 | . . 1 . 1 . Tunneler 1 | 1 . . . . . Hauler 8 | . 2 . 6 . . Recycler 2 | . 1 . 1 . . Operator 3 | . 1 . 2 . . Watcher 3 | . 1 . 2 . . Swarmer 15 | . 3 1 8 3 . Grunt 24 | . 11 5 8 . . Sentry 12 | . . . 10 2 . Demolisher 2 | . . . . 2 . Assembled 10 | . . . . 10 . Best Kill Streak 5 | 1 4 2 4 5 . Combat Bots Only 5 | . 3 2 4 5 . Max Kills in Single Turn 2 | 1 1 1 2 2 . Gunslinging 1 | . . . 1 1 . Exploded . | . . . . . . Melee . | . . . . . . Uniques/NPCs Destroyed . | . . . . . . Combat | -11 -10 -10 -9 -9 -7 -------- Run | Scr Mat Min Mat Min Zio Damage Taken 2642 | . 560 477 971 634 . Core 250 | . 63 66 55 66 . Absorbed by Shields 208 | . . 32 176 . . Regen/Repaired (Parts) 205 | . 114 . 91 . . Core Remaining (%) 74 | 100 . 48 . . . Volleys Fired 212 | 4 72 23 72 34 7 Largest 3 | 1 2 2 3 3 2 Hottest 129 | 20 90 44 129 75 48 Shots Fired 509 | 4 145 47 203 102 8 Gun 500 | 4 145 47 201 102 1 Cannon . | . . . . . . Launcher 2 | . . . 2 . . Special 7 | . . . . . 7 Kinetic 380 | 4 44 47 182 102 1 Thermal 126 | . 100 . 19 . 7 Explosive 2 | . . . 2 . . Electromagnetic 1 | . 1 . . . . Robot Hit Streak 19 | 1 8 11 19 14 5 Robot Miss Streak 5 | 2 4 1 4 5 1 Penetration Max . | . . . . . . Secondary Targets 5 | . . . 3 2 . Max Gunslinging Chain 1 | . . . 1 1 . Shots Hit Robots 327 | 2 99 36 135 51 4 Core Hits 153 | 2 39 18 64 27 3 Critical Kills . | . . . . . . Critical Parts Destroyed 1 | . . . 1 . . Critical Strikes 6 | . 4 . 2 . . Burn 5 | . 4 . 1 . . Destroy 1 | . . . 1 . . Melee Attacks 1 | . . . . . 1 Impact . | . . . . . . Slashing . | . . . . . . Piercing 1 | . . . . . 1 Sneak Attacks . | . . . . . . Combat Hostiles . | . . . . . . Follow-up Attacks . | . . . . . . Damage Inflicted 5120 | 15 1132 395 2474 1035 69 Guns 4732 | 15 1065 375 2308 954 15 Cannons . | . . . . . . Explosions 91 | . . . 91 . . Melee . | . . . . . . Ramming 243 | . 67 20 75 81 . Kinetic 3709 | 15 239 375 2111 954 15 Thermal 1077 | . 826 . 197 . 54 Explosive 91 | . . . 91 . . Electromagnetic . | . . . . . . Impact . | . . . . . . Slashing . | . . . . . . Piercing . | . . . . . . Highest Corruption 6 | . 5 6 . 3 3 Average Corruption 4 | . 4 5 . 3 3 Corruption Purged . | . . . . . . Corruption Blocked . | . . . . . . Effects 78 | . 33 26 . 16 3 Message Errors 19 | . 9 6 . 3 1 Matter Fused 14 | . 5 4 . 4 1 Heat Flow Errors 5 | . 2 1 . 2 . Energy Discharges 13 | . 4 6 . 3 . Parts Rejected 2 | . 1 1 . . . Data Loss (minor) 8 | . 4 2 . 2 . Data Loss (major) 7 | . 1 3 . 2 1 Misfires 7 | . 6 1 . . . Alerts 2 | . . 2 . . . Weapon Failures 1 | . 1 . . . . Overload Shots . | . . . . . . Overflow Damage . | . . . . . . Projectiles . | . . . . . . Explosions . | . . . . . . Melee . | . . . . . . Knockbacks 5 | . 2 1 1 1 . Impact 5 | . 2 1 1 1 . Kinetic . | . . . . . . Secondary . | . . . . . . Self-Inflicted Damage . | . . . . . . Shots . | . . . . . . Rammed 32 | . 9 3 12 8 . Targets Rammed 37 | . 9 7 13 8 . Kicked 3 | . . 3 . . . Crushed 2 | . . 1 1 . . Highest Temperature 254 | . 254 125 216 213 . Average Temperature 49 | . 49 21 51 51 . Received Heat Transfer 985 | . 276 183 363 163 . Siege Activations . | . . . . . . Robots Corrupted . | . . . . . . Combat Hostiles . | . . . . . . Parts Fried . | . . . . . . Impact Corruptions 1 | . . . 1 . . Robots Melted 2 | . 2 . . . . Combat Hostiles 1 | . 1 . . . . Parts Melted 8 | . 7 . 1 . . Heat Transferred 3231 | . 2525 . 521 . 185 Parts Sabotaged . | . . . . . . Parts Stolen . | . . . . . . Parts Stripped . | . . . . . . Power Chain Reactions . | . . . . . . Missiles Intercepted . | . . . . . . Alert | -11 -10 -10 -9 -9 -7 ------- Run | Scr Mat Min Mat Min Zio Peak Influence 284 | 5 192 170 284 219 . Initial 64 | . 3 25 19 64 . Average 75 | 1 66 43 109 55 . Maximum Alert Level 1 | . . . 1 1 . Low Security (%) 94 | 100 100 100 94 87 . Level 1 5 | . . . 5 12 . Level 2 . | . . . . . . Level 3 . | . . . . . . Level 4 . | . . . . . . Level 5 . | . . . . . . High Security . | . . . . . . Max Security . | . . . . . . Squads Dispatched 5 | . 4 1 . . . Investigation 2 | . 1 1 . . . Extermination . | . . . . . . Reinforcement 3 | . 3 . . . . Assault . | . . . . . . Garrison . | . . . . . . Intercept . | . . . . . . Construction Impeded . | . . . . . . Haulers Reinforced . | . . . . . . Active Scanning Responses . | . . . . . . Cargo Convoy Interrupts . | . . . . . . Stealth | -11 -10 -10 -9 -9 -7 --------- Run | Scr Mat Min Mat Min Zio Distress Signals 2 | . 1 . 1 . . Communications Jammed . | . . . . . . Distress Signals . | . . . . . . Times Spotted 117 | . 36 9 42 30 . Peak Tracking Total 8 | . 5 3 5 8 . Tactical Retreats 8 | . . 2 1 5 . Traps | -11 -10 -10 -9 -9 -7 ------- Run | Scr Mat Min Mat Min Zio Traps Triggered 7 | . 5 1 1 . . Indirectly . | . . . . . . Trap Hack Attempts . | . . . . . . Triggered . | . . . . . . Disarmed . | . . . . . . Reprogrammed . | . . . . . . Reused . | . . . . . . Traps Extracted . | . . . . . . Installed . | . . . . . . Triggered . | . . . . . . Machines | -11 -10 -10 -9 -9 -7 ---------- Run | Scr Mat Min Mat Min Zio Machines Disabled 1 | . . . 1 . . Max in Single Turn 1 | . . . 1 . . Machines Sabotaged . | . . . . . . Garrisons Compromised . | . . . . . . Overloaded Fab Kills . | . . . . . . Hacking | -11 -10 -10 -9 -9 -7 --------- Run | Scr Mat Min Mat Min Zio Machines Accessed 20 | . 6 2 12 . . Terminals 17 | . 5 1 11 . . Fabricators . | . . . . . . Repair Stations 2 | . 1 . 1 . . Recycling Units . | . . . . . . Scanalyzers . | . . . . . . Garrison Access . | . . . . . . Total Hacks 57 | . 16 7 34 . . Successful 31 | . 8 4 19 . . Failed 26 | . 8 3 15 . . Catastrophic 1 | . . . 1 . . Database Lockouts . | . . . . . . Manual 39 | . 15 6 18 . . Terminals 52 | . 14 6 32 . . Fabricators . | . . . . . . Repair Stations 4 | . 2 . 2 . . Recycling Units . | . . . . . . Scanalyzers . | . . . . . . Garrison Access . | . . . . . . Terminal Hacks 22 | . 4 4 14 . . Part Schematic 1 | . 1 . . . . Robot Analysis 3 | . 2 . 1 . . Prototype ID Bank 7 | . . 2 5 . . Open Door 1 | . . 1 . . . Branch Access Points 1 | . . . 1 . . Terminal Index 1 | . . . 1 . . Unreport Threat 5 | . 1 1 3 . . Locate Traps 1 | . . . 1 . . Hauler Manifests 2 | . . . 2 . . Fabricator Hacks . | . . . . . . Repair Station Hacks 4 | . 2 . 2 . . Scan Component 2 | . 1 . 1 . . Repair 2 | . 1 . 1 . . Recycling Unit Hacks . | . . . . . . Scanalyzer . | . . . . . . Garrison Access Hacks . | . . . . . . Unauthorized Hacks 5 | . 2 . 3 . . Terminals 5 | . 2 . 3 . . Botnet 5 | . 2 . 3 . . Fabricators . | . . . . . . Repair Stations . | . . . . . . Recycling Units . | . . . . . . Scanalyzers . | . . . . . . Garrison Access . | . . . . . . Data Cores Recovered 3 | . 1 . 2 . . Used 1 | . . . 1 . . Hacking Detections 19 | . 6 1 12 . . Full Trace Events . | . . . . . . Feedback Events . | . . . . . . Feedback Blocked . | . . . . . . Robot Schematics Acquired 2 | . . . . . 2 Robots Built . | . . . . . . Authchips . | . . . . . . Time . | . . . . . . Total Robot Build Rating . | . . . . . . Part Schematics Acquired 15 | . 1 . . . 14 Parts Built . | . . . . . . Authchips . | . . . . . . Time . | . . . . . . Total Part Build Rating . | . . . . . . Parts Repaired 2 | . 1 . 1 . . Time 52 | . 26 . 26 . . Parts Recycled . | . . . . . . Recycled Matter . | . . . . . . Retrieved Matter . | . . . . . . Retrieved Components . | . . . . . . Parts Scanalyzed . | . . . . . . Part Schematics Acquired . | . . . . . . Parts Damaged . | . . . . . . Bothacking | -11 -10 -10 -9 -9 -7 ------------ Run | Scr Mat Min Mat Min Zio Used RIF Installer . | . . . . . . Robots Hacked . | . . . . . . Non-combat . | . . . . . . Combat . | . . . . . . Robot Hacks Applied . | . . . . . . Relay Couplers Released . | . . . . . . Fabnet Peak Effective % . | . . . . . . Robots Rewired . | . . . . . . Allies Hacked . | . . . . . . Hacks Repelled . | . . . . . . Allies | -11 -10 -10 -9 -9 -7 -------- Run | Scr Mat Min Mat Min Zio Total Allies 3 | . . . . 3 . Largest Group 3 | . . . . 3 3 Highest-Rated Group 40 | . . . . 40 40 Highest-Rated Ally 16 | . . . . 16 16 Total Orders 1 | . . . . . 1 STAY 1 | . . . . . 1 Ally Attacks 23 | . . . . 5 18 Total Damage 234 | . . . . 41 193 Kills 3 | . . . . 1 2 Allies Corrupted . | . . . . . . Allies Melted . | . . . . . . Intel | -11 -10 -10 -9 -9 -7 ------- Run | Scr Mat Min Mat Min Zio Robot Analysis Total 3 | . 2 . 1 . . Derelict Logs Recovered 4 | . . 1 . 2 1 Drone Launches . | . . . . . . Drone Recoveries . | . . . . . . Exploration | -11 -10 -10 -9 -9 -7 ------------- Run | Scr Mat Min Mat Min Zio Turns Passed 7914 | 130 1559 1077 2789 1668 691 Spaces Moved 3951 | 74 685 531 1489 899 273 Core 10 | 10 . . . . . Treads 3445 | 64 671 209 1329 899 273 Legs 496 | . 14 322 160 . . Wheels . | . . . . . . Hover . | . . . . . . Flight . | . . . . . . Fastest Speed 50 | 50 160 160 160 160 240 Average Speed 172 | 147 160 181 163 171 240 Slowest Speed 260 | 160 260 240 195 240 240 Overloaded Moves . | . . . . . . Propulsion Burnouts . | . . . . . . Robots Hopped . | . . . . . . Cave-ins Triggered . | . . . . . . Exploration Rate (%) 70 | 7 95 95 97 97 34 Regions Visited 5 Branch Regions 3 Pre-discovered Areas 3 | . . 1 . 2 . Known Exits Taken 1 | . . . 1 . . Unknown Exits Taken 4 | 1 1 1 . 1 . Scrap Searched 3 | . . 1 . 2 . Spaces Dug 1 | . . . . . 1 Terrain Destroyed 24 | . . . 21 2 1 Melee 1 | . . . . . 1 Projectile 2 | . . . . 2 . AOE 21 | . . . 21 . . Terrain Rammed . | . . . . . . Walls Destroyed . | . . . . . . Machines Disabled . | . . . . . . Actions | -11 -10 -10 -9 -9 -7 --------- Run | Scr Mat Min Mat Min Zio Total 4674 | 89 1003 602 1721 968 291 Wait 283 | . 198 19 59 7 . Move 3946 | 73 684 530 1488 898 273 Hop . | . . . . . . Pick Up 49 | 5 12 4 18 7 3 Fast Attach 24 | 6 7 4 6 . 1 Attach 10 | 1 . 2 4 2 1 Detach 5 | . 2 . . . 3 Swap 47 | . 10 5 25 5 2 Drop 60 | . 9 8 36 7 . Fire 212 | 4 72 23 72 34 7 Melee 1 | . . . . . 1 Ram . | . . . . . . Kick 3 | . . 3 . . . Crush 34 | . 9 4 13 8 . Escape Stasis . | . . . . . . Rewire . | . . . . . . Trap . | . . . . . . Miscellaneous . | . . . . . . Route ------- -11/Scrapyard -10/Materials (discovered 4 exits: *Mat x3 / *Min) -10/Mines (discovered 2 exits: *Mat x2) -9/Materials (discovered 5 exits: [*Mat x3] / *Min / *Sto) -9/Mines (discovered 4 exits: [*Mat x2] / [*Exi] / [*Zio]) -7/Zion History --------- Turn | Location | Event 2 | -11/Scrapyard | Met Revision 17 15 | -11/Scrapyard | Discovered new exit (range 14) 131 | -11/Scrapyard | Entered Materials 310 | -10/Materials | Build established: Mutant 515 | -10/Materials | Discovered new exit (range 11) 956 | -10/Materials | Discovered new exit (range 3) 1116 | -10/Materials | Repaired Lgt. Treads 1121 | -10/Materials | Discovered new exit (range 14) 1451 | -10/Materials | Discovered new exit (range 10) 1690 | -10/Materials | Entered Mines 1750 | -10/Mines | Discovered new exit (range 8) 1794 | -10/Mines | Discovered new exit (range 10) 2066 | -10/Mines | Met a Derelict shopkeep closing up shop 2315 | -10/Mines | Received a Rocket Launcher from a helpful Derelict 2441 | -10/Mines | A weapon hastily lodged in a ceiling crevice suddenly fell to the ground 2512 | -10/Mines | Core integrity fell below 50% 2661 | -10/Mines | Learned location of Recycling (-9) 2767 | -10/Mines | Entered Materials 2767 | -9/Materials | Evolved 2 slots: Propulsion x1, Weapon x1 3049 | -9/Materials | Identified exit to Mines 3049 | -9/Materials | Identified exit to Storage 3302 | -9/Materials | Build established: Tank 3345 | -9/Materials | Repaired Lgt. Treads 3503 | -9/Materials | Discovered new exit (range 9) 3823 | -9/Materials | Discovered new exit (range 10) 4445 | -9/Materials | Discovered new exit (range 9) 5556 | -9/Materials | Entered Mines 5825 | -9/Mines | Discovered new exit (range 5) 5930 | -9/Mines | A Derelict revealed a hidden shortcut to a safe place 5939 | -9/Mines | Assembled infested the area 6067 | -9/Mines | Learned location of Storage (-9) 6199 | -9/Mines | Deemed a non-threat by the Exiles lab entrance 6199 | -9/Mines | Discovered new exit (range 5) 6289 | -9/Mines | Discovered new exit (range 8) 6803 | -9/Mines | Assisted by bots powering up and referring to "LRC-V3" 7224 | -9/Mines | Entered Zion 7224 | -7/Zion | Accompanied by 3 allies 7326 | -7/Zion | Found CR-A16's Pointy Stick 7366 | -7/Zion | System corruption cleaned by Quarantine Array 7548 | -7/Zion | Build established: Mutant 7873 | -7/Zion | Attacked by Zionites 7915 | -7/Zion | Self-destructed Last Messages --------------- scanned 3 systems, cleaned 1. 07859_ H-55 Commando destroyed. 07864_ Acquired Gauss Rifle. 07866_ Carbon-fiber Leg fries itself beyond repair. 07866_ Acquired 25 matter. 07868_ Slug penetrates H-55 Commando. 07869_ Acquired 4 matter. 07870_ Carbon-fiber Leg fries itself beyond repair. 07871_ 6T-DS7(c) is engrossed in a particular circuit board. 07873_ PUBLIC SERVICE ANNOUNCEMENT: Zion is under attack! Defend our home! 07873_ Destroyed Aluminum Leg. 07874_ ZZ-1BQ(z) pulls a Mak. Shrapnel Gun out of the Twisted Machinery. 07875_ ZZ-1BQ(z) destroyed. 07877_ Assault Rifle fries itself beyond repair. 07881_ Destroyed Lgt. Nuclear Core. 07883_ 6T-DS7(c) destroyed. 07884_ Acquired 10 matter. Map ----- +----------------------------------------------------+ | ?????????????????????????????????????????????????? | | ?????????????????????????????????????????????????? | | ?????????????????????????????????????????????????? | | ?????????????????????????????????????????????????? | | ?????????????????????????????????????????????????? | | ?????????????????????????????????????????????????? | | ?????????????????????????????????????????????????? | | ?????????????????????????????????????????????????? | | ?????????????????????????????????????????????????? | | ?????????????????????????????????????????????????? | | ?????????????????????????????????????????????????? | | ?????????????????????????????????????????????????? | | ?????????????????????????????????????????????????? | | ?????????????????????????????????????????????????? | | ?????????????????????????????????????????????????? | | ?????????????????????????????????????????????????? | | ?????????????????????????????????????????????????? | | ?????????????????????????????????????????????????? | | ????????????????????########?????????????????????? | | ????????????????????#""""""#?????????????????????? | | ????????????????????#"g ""#?????????????????????? | | ????????????????????#"% "#?????????????????????? | | ????????????????????#; !##?????????????????????? | | ????????????????????## %#??????????????????????? | | ????????????????????#""" "#####??##?""####???????? | | ???????????????????## @ #"###""#""""""#"??#### | | ???????????????????#" *!#"#"""##" """"###""" | | ?????????????????"""""### #g= """#"##"" """"##""" | | ???????????????? """""##g[ ""#"""" """""""" | | ??????????????? """"""" """#"" """ | | ???????????????? ? """" "##""" "" | | ???????????????? "" " "#"""" | | ??????????????????? "" ! "" | | ?????????????????? """%! " | | ?????????????????? ""##" # | | ?????????????????""" """##""""" | | ??????????????????"" """##"##"""""" | | ??????????????????"" ""#?##"""""""" | | ?????????????????? ""?""""" "" | | ?????????????????? "???"" | | ?????????????????? "???"" " | | ???????????????????? ?????"" "" """" "" | | ???????????????????????? """ """"""""" | | ???????????????????????? | | ??????????????????????????"" | | ??????????????????????????"" | | ??????????????????????????"" """"""#"""""#"#"##" | | ??????????????????????????"" """"""""""""""""""" | | ???????????????????????????????""""""""#"""##"##"" | | ????????????????????????????????"" """"#########" | +----------------------------------------------------+ Best States ------------- Heat Dissipation 39 Energy Generation 14 Energy Capacity 280 Matter Stores 300 Matter Capacity 300 Sight Range 16 Terrain Scan Range 16 Terrain Scan Density 10 Armor Coverage 225 Evasion (%) 40 Recoil Reduction 3 Item Schematics ----------------- Cargo Storage Unit | -10/Materials | Hacked Hvy. Ion Cannon | -7/Zion | Archive Angular Momentum Engine | -7/Zion | Archive Weapon Cycler | -7/Zion | Archive Imp. Heavy Armor Plating | -7/Zion | Archive Adv. ECM Suite | -7/Zion | Archive Imp. Deuterium Engine | -7/Zion | Archive Imp. Target Analyzer | -7/Zion | Archive Hvy. Beamcaster | -7/Zion | Archive Cloaking Device | -7/Zion | Archive Mak. Sword | -7/Zion | Archive Point Defense System | -7/Zion | Archive Hvy. Plasma Cannon | -7/Zion | Archive Hvy. Battle Rifle | -7/Zion | Archive Enh. Optical Array | -7/Zion | Archive Robot Schematics ------------------ O-24 Administrator | -7/Zion | Archive R-06 Scavenger | -7/Zion | Archive Fabricated ------------ Nothing Alien Tech Used ----------------- None Achievements -------------- None Challenges ------------ None Game ------ Seed RefineryReactiveRecalibrator Manual? 0 Play Time 00:46:41 Cumulative 329.0 hours Start 2022.02.07 @ 08:44:43 End 2022.02.07 @ 11:03:15 Sessions 3 Manual Loads 0 Difficulty Rogue Special Mode None Game No. 135 Rogue 135 Adventurer 0 Explorer 0 Win Type - Total 6 Types 1/2/1/0/0/2/0/0/0 Lore% 59 Gallery% 62 Achievement% 59 Wizard Run 0 Options --------- ASCII 0 Keyboard 1 Movement Vi Keybinds 0 Fullscreen 2 Font 12/Smallcaps Map View 60x54 Tactical HUD 1 Map Filters NONE Filters NONE Steam 1 RUN: eef1b469-4fd1-4221-8573-5f4cfd86c804